Workbook

Sheet Proračun od 18 razdoblja
B1: proračun tvrtke
G2: DATUM POČETKA | H2: 2011-01-01 | I2: DULJINA RAZDOBLJA (U DANIMA) | K2: 14 | L2: DATUM ZAVRŠETKA | M2: =TEXT(T5,"dd.mm.yyyy") -> 26.08.2012
C5: =UPPER(TEXT(H2,"dd-mmmm")) -> 01-SIJEČANJ | D5: =UPPER(TEXT(C5+IntervalDana,"dd-mmmm")) -> 15-SIJEČANJ | E5: 29-SIJEČANJ | F5: 12-VELJAČA | G5: 26-VELJAČA | H5: 11-OŽUJAK | I5: 25-OŽUJAK | J5: 08-TRAVANJ | K5: 22-TRAVANJ | L5: 06-SVIBANJ | M5: 20-SVIBANJ | N5: 03-LIPANJ | O5: 17-LIPANJ | P5: 01-SRPANJ | Q5: 15-SRPANJ | R5: 29-SRPANJ | S5: 12-KOLOVOZ | T5: 26-KOLOVOZ | U5: UKUPNO | V5: TREND
B6: NETO PRIHOD | C6: =TablicaPrihoda[[#Totals],[1. tjedan]]-TablicaIzdataka[[#Totals],[1. tjedan]] -> 1,750.00 kn | D6: =TablicaPrihoda[[#Totals],[2. tjedan]]-TablicaIzdataka[[#Totals],[2. tjedan]] -> 2,236.00 kn | E6: =TablicaPrihoda[[#Totals],[3. tjedan]]-TablicaIzdataka[[#Totals],[3. tjedan]] -> 1,442.00 kn | F6: =TablicaPrihoda[[#Totals],[4. tjedan]]-TablicaIzdataka[[#Totals],[4. tjedan]] -> 2,253.00 kn | G6: =TablicaPrihoda[[#Totals],[5. tjedan]]-TablicaIzdataka[[#Totals],[5. tjedan]] -> 1,533.00 kn | H6: =TablicaPrihoda[[#Totals],[6. tjedan]]-TablicaIzdataka[[#Totals],[6. tjedan]] -> 1,086.00 kn | I6: =TablicaPrihoda[[#Totals],[7. tjedan]]-TablicaIzdataka[[#Totals],[7. tjedan]] -> 1,594.00 kn | J6: =TablicaPrihoda[[#Totals],[8. tjedan]]-TablicaIzdataka[[#Totals],[8. tjedan]] -> 0 | K6: =TablicaPrihoda[[#Totals],[9. tjedan]]-TablicaIzdataka[[#Totals],[9. tjedan]] -> 0 | L6: =TablicaPrihoda[[#Totals],[10. tjedan]]-TablicaIzdataka[[#Totals],[10. tjedan]] -> 0 | M6: =TablicaPrihoda[[#Totals],[11. tjedan]]-TablicaIzdataka[[#Totals],[11. tjedan]] -> 0 | N6: =TablicaPrihoda[[#Totals],[12. tjedan]]-TablicaIzdataka[[#Totals],[12. tjedan]] -> 0 | O6: =TablicaPrihoda[[#Totals],[13. tjedan]]-TablicaIzdataka[[#Totals],[13. tjedan]] -> 0 | P6: =TablicaPrihoda[[#Totals],[14. tjedan]]-TablicaIzdataka[[#Totals],[14. tjedan]] -> 0 | Q6: =TablicaPrihoda[[#Totals],[15. tjedan]]-TablicaIzdataka[[#Totals],[15. tjedan]] -> 0 | R6: =TablicaPrihoda[[#Totals],[16. tjedan]]-TablicaIzdataka[[#Totals],[16. tjedan]] -> 0 | S6: =TablicaPrihoda[[#Totals],[17. tjedan]]-TablicaIzdataka[[#Totals],[17. tjedan]] -> 0 | T6: =TablicaPrihoda[[#Totals],[18. tjedan]]-TablicaIzdataka[[#Totals],[18. tjedan]] -> 0 | U6: =TablicaPrihoda[[#Totals],[Ukupno]]-TablicaIzdataka[[#Totals],[Ukupno]] -> 11,894.00 kn
A8: prihod
B9: STAVKA PRIHODA 1 | C9: 3,000.00 kn | D9: 3,500.00 kn | E9: 2,978.00 kn | F9: 3,384.00 kn | G9: 2,858.00 kn | H9: 2,809.00 kn | I9: 3,220.00 kn | U9: =SUM(TablicaPrihoda[[#This Row],[1. tjedan]:[18. tjedan]]) -> 21,749.00 kn
B10: STAVKA PRIHODA 2 | C10: 1,150.00 | D10: 1,200.00 | E10: 1,144.00 | F10: 1,400.00 | G10: 1,358.00 | H10: 1,154.00 | I10: 1,245.00 | U10: =SUM(TablicaPrihoda[[#This Row],[1. tjedan]:[18. tjedan]]) -> 8,651.00
B11: STAVKA PRIHODA 3 | C11: 300.00 | D11: 350.00 | E11: 392.00 | F11: 326.00 | G11: 381.00 | H11: 364.00 | I11: 315.00 | U11: =SUM(TablicaPrihoda[[#This Row],[1. tjedan]:[18. tjedan]]) -> 2,428.00
B12: UKUPNI PRIHOD | C12: =SUBTOTAL(109,TablicaPrihoda[1. tjedan]) -> 4,450.00 kn | D12: =SUBTOTAL(109,TablicaPrihoda[2. tjedan]) -> 5,050.00 kn | E12: =SUBTOTAL(109,TablicaPrihoda[3. tjedan]) -> 4,514.00 kn | F12: =SUBTOTAL(109,TablicaPrihoda[4. tjedan]) -> 5,110.00 kn | G12: =SUBTOTAL(109,TablicaPrihoda[5. tjedan]) -> 4,597.00 kn | H12: =SUBTOTAL(109,TablicaPrihoda[6. tjedan]) -> 4,327.00 kn | I12: =SUBTOTAL(109,TablicaPrihoda[7. tjedan]) -> 4,780.00 kn | J12: =SUBTOTAL(109,TablicaPrihoda[8. tjedan]) -> 0 | K12: =SUBTOTAL(109,TablicaPrihoda[9. tjedan]) -> 0 | L12: =SUBTOTAL(109,TablicaPrihoda[10. tjedan]) -> 0 | M12: =SUBTOTAL(109,TablicaPrihoda[11. tjedan]) -> 0 | N12: =SUBTOTAL(109,TablicaPrihoda[12. tjedan]) -> 0 | O12: =SUBTOTAL(109,TablicaPrihoda[13. tjedan]) -> 0 | P12: =SUBTOTAL(109,TablicaPrihoda[14. tjedan]) -> 0 | Q12: =SUBTOTAL(109,TablicaPrihoda[15. tjedan]) -> 0 | R12: =SUBTOTAL(109,TablicaPrihoda[16. tjedan]) -> 0 | S12: =SUBTOTAL(109,TablicaPrihoda[17. tjedan]) -> 0 | T12: =SUBTOTAL(109,TablicaPrihoda[18. tjedan]) -> 0 | U12: =SUBTOTAL(109,TablicaPrihoda[Ukupno]) -> 32,828.00 kn
A14: rashodi
B15: PRIMANJA | C15: 1,500.00 kn | D15: 1,577.00 kn | E15: 1,823.00 kn | F15: 1,529.00 kn | G15: 1,759.00 kn | H15: 1,947.00 kn | I15: 1,875.00 kn | U15: =SUM(TablicaIzdataka[[#This Row],[1. tjedan]:[18. tjedan]]) -> 12,010.00 kn
B16: NAJAMNINA | C16: 1,000.00 | D16: 1,000.00 | E16: 1,000.00 | F16: 1,000.00 | G16: 1,000.00 | H16: 1,000.00 | I16: 1,000.00 | U16: =SUM(TablicaIzdataka[[#This Row],[1. tjedan]:[18. tjedan]]) -> 7,000.00
B17: ELEKTRIČNA ENERGIJA | C17: 40.00 | D17: 43.00 | E17: 40.00 | F17: 42.00 | G17: 45.00 | H17: 40.00 | I17: 42.00 | U17: =SUM(TablicaIzdataka[[#This Row],[1. tjedan]:[18. tjedan]]) -> 292.00
B18: TELEFON | C18: 12.00 | D18: 11.00 | E18: 13.00 | F18: 14.00 | G18: 11.00 | H18: 15.00 | I18: 15.00 | U18: =SUM(TablicaIzdataka[[#This Row],[1. tjedan]:[18. tjedan]]) -> 91.00
B19: INTERNET | C19: 15.00 | D19: 15.00 | E19: 15.00 | F19: 15.00 | G19: 15.00 | H19: 15.00 | I19: 15.00 | U19: =SUM(TablicaIzdataka[[#This Row],[1. tjedan]:[18. tjedan]]) -> 105.00
B20: VODA | C20: 11.00 | D20: 10.00 | E20: 13.00 | F20: 10.00 | G20: 13.00 | H20: 10.00 | I20: 12.00 | U20: =SUM(TablicaIzdataka[[#This Row],[1. tjedan]:[18. tjedan]]) -> 79.00
B21: PLIN | C21: 23.00 | D21: 27.00 | E21: 26.00 | F21: 27.00 | G21: 22.00 | H21: 29.00 | I21: 21.00 | U21: =SUM(TablicaIzdataka[[#This Row],[1. tjedan]:[18. tjedan]]) -> 175.00
B22: ODVOZ SMEĆA | C22: 4.00 | D22: 4.00 | E22: 4.00 | F22: 4.00 | G22: 4.00 | H22: 4.00 | I22: 4.00 | U22: =SUM(TablicaIzdataka[[#This Row],[1. tjedan]:[18. tjedan]]) -> 28.00
B23: KABLOVSKA TELEVIZIJA | C23: 10.00 | D23: 10.00 | E23: 10.00 | F23: 10.00 | G23: 10.00 | H23: 10.00 | I23: 10.00 | U23: =SUM(TablicaIzdataka[[#This Row],[1. tjedan]:[18. tjedan]]) -> 70.00
B24: UREDSKI PRIBOR | C24: 25.00 | D24: 57.00 | E24: 68.00 | F24: 146.00 | G24: 125.00 | H24: 111.00 | I24: 132.00 | U24: =SUM(TablicaIzdataka[[#This Row],[1. tjedan]:[18. tjedan]]) -> 664.00
B25: OSIGURANJE | C25: 60.00 | D25: 60.00 | E25: 60.00 | F25: 60.00 | G25: 60.00 | H25: 60.00 | I25: 60.00 | U25: =SUM(TablicaIzdataka[[#This Row],[1. tjedan]:[18. tjedan]]) -> 420.00
B26: UKUPNI TROŠKOVI | C26: =SUBTOTAL(109,TablicaIzdataka[1. tjedan]) -> 2,700.00 kn | D26: =SUBTOTAL(109,TablicaIzdataka[2. tjedan]) -> 2,814.00 kn | E26: =SUBTOTAL(109,TablicaIzdataka[3. tjedan]) -> 3,072.00 kn | F26: =SUBTOTAL(109,TablicaIzdataka[4. tjedan]) -> 2,857.00 kn | G26: =SUBTOTAL(109,TablicaIzdataka[5. tjedan]) -> 3,064.00 kn | H26: =SUBTOTAL(109,TablicaIzdataka[6. tjedan]) -> 3,241.00 kn | I26: =SUBTOTAL(109,TablicaIzdataka[7. tjedan]) -> 3,186.00 kn | J26: =SUBTOTAL(109,TablicaIzdataka[8. tjedan]) -> 0 | K26: =SUBTOTAL(109,TablicaIzdataka[9. tjedan]) -> 0 | L26: =SUBTOTAL(109,TablicaIzdataka[10. tjedan]) -> 0 | M26: =SUBTOTAL(109,TablicaIzdataka[11. tjedan]) -> 0 | N26: =SUBTOTAL(109,TablicaIzdataka[12. tjedan]) -> 0 | O26: =SUBTOTAL(109,TablicaIzdataka[13. tjedan]) -> 0 | P26: =SUBTOTAL(109,TablicaIzdataka[14. tjedan]) -> 0 | Q26: =SUBTOTAL(109,TablicaIzdataka[15. tjedan]) -> 0 | R26: =SUBTOTAL(109,TablicaIzdataka[16. tjedan]) -> 0 | S26: =SUBTOTAL(109,TablicaIzdataka[17. tjedan]) -> 0 | T26: =SUBTOTAL(109,TablicaIzdataka[18. tjedan]) -> 0 | U26: =SUBTOTAL(109,TablicaIzdataka[Ukupno]) -> 20,934.00 kn
